Cogmind - Beta 17 @@@ ROGUE MODE // 2026.07.06 @ 02:37:58 Player: cptwinky Result: Destroyed by H-88 Terminator with KE Penetrator Performance ------------- Evolutions (9) 4500 Regions Visited (10) 2000 Robots Destroyed (157) 785 Value Destroyed (5476) 5476 Prototype IDs (35) 700 Alien Tech Used (0) 0 Bonus (17533) 17533 TOTAL SCORE: 30994 Bonus ------- High Alert Combat Kills 696 Follower Combat Kills 837 Prayed to X0-1V1 5000 Major X0-1V1 Interference 11000 Cogmind --------- Core Integrity 0/1850 Matter 300/300 Energy 100/100 System Corruption 37% Temperature Cool (0) Movement Core (50) Location -1/Access Parts ------- > --- POWER (3) -------- (None) > --- PROPULSION (7) --- (None) > --- UTILITY (11) ----- (None) > --- WEAPON (3) ------- (None) > --- INVENTORY (5) ---- Compact Battery (200) Enhanced Nova Cannon Enhanced Force Lance Peak State ------------ > --- POWER ------------ Singularity Reactor > --- PROPULSION ------- Advanced Heavy Treads Advanced Heavy Treads Improved Heavy Siege Treads Experimental Q-thruster > --- UTILITY ---------- Medium Storage Unit Advanced Signal Interpreter Advanced Melee Analysis Suite Advanced Melee Analysis Suite Core Analyzer Experimental Armor Integrity Analyzer Centrium Heavy Armor Plating Experimental Shield Generator Hacking Suite Hacking Suite > --- WEAPON ----------- Fusion Bomb Launcher Chaos Jack Nanosword > --- INVENTORY -------- Vortex Chain Reactor Experimental Energy Well Nanoactuators Advanced Powered Armor Graphene Brace Advanced Point Defense System Assault Drone Bay Gravity Flail [Rating: 184] Favorites ----------- Power Heavy Ion Engine Engine Heavy Ion Engine Power Core Light Nuclear Core Reactor Micro Antimatter Reactor Propulsion Light Treads Treads Light Treads Leg Myomer Leg Hover Unit Combat Linear Gravjet Flight Unit Cooled Cesium-ion Thruster Utility X0-1V1's Piety Tracker Device X0-1V1's Piety Tracker Storage Huge Storage Unit Processor Advanced Melee Analysis Suite Hackware Hacking Suite Protection Heavy Armor Plating Weapon Light Cannon Energy Gun Improved EM Shotgun Energy Cannon Beam Cannon Ballistic Gun Heavy Assault Rifle Ballistic Cannon Light Cannon Launcher Fusion Bomb Launcher Special Weapon Mining Laser Impact Weapon Thunder Hammer Slashing Weapon Nanosword Piercing Weapon Spear Special Melee Weapon Chaos Jack Build | -11 -10 -9 -8 -7 -6 -5 -4 -3 -2 -1 ------- Run | Yrd Mat Mat Mat Fac Fac Fac Fac Res Res Acc Slots Evolved 16 | . . 2 2 2 2 2 2 2 2 . Power 1 | . . . . . . 1 . . . . Propulsion 5 | . . 1 1 . 1 1 . 1 . . Utility 9 | . . 1 1 2 1 . 2 1 1 . Weapon 1 | . . . . . . . . . 1 . Parts Attached 190 | 7 5 16 12 9 23 8 2 26 44 38 Power 22 | 1 1 2 . . 1 4 . 3 6 4 Engine 6 | 1 1 2 . . . 1 . 1 . . Core 4 | . . . . . 1 2 . . 1 . Reactor 12 | . . . . . . 1 . 2 5 4 Propulsion 68 | 2 . 5 7 1 10 1 . 6 20 16 Treads 19 | 2 . 5 6 1 . . . . 5 . Leg 9 | . . . . . . . . . 9 . Wheel . | . . . . . . . . . . . Hover 6 | . . . . . . . . . 1 5 Flight 34 | . . . 1 . 10 1 . 6 5 11 Utility 66 | 2 1 3 4 6 8 3 2 11 13 13 Device 23 | 1 1 . 2 2 1 1 1 5 6 3 Storage 8 | 1 . 1 . . 1 . . 1 1 3 Processor 17 | . . . . 3 4 1 . 3 2 4 Hackware 6 | . . . . . 1 1 1 2 1 . Protection 12 | . . 2 2 1 1 . . . 3 3 Artifact . | . . . . . . . . . . . Weapon 34 | 2 3 6 1 2 4 . . 6 5 5 Energy Gun 1 | . . 1 . . . . . . . . Energy Cannon 3 | . . 1 . . . . . 1 . 1 Ballistic Gun 5 | 2 1 2 . . . . . . . . Ballistic Cannon 3 | . 2 . 1 . . . . . . . Launcher 4 | . . 1 . 1 . . . 1 1 . Special Weapon 1 | . . 1 . . . . . . . . Impact Weapon 2 | . . . . . 1 . . 1 . . Slashing Weapon 6 | . . . . . . . . 3 1 2 Piercing Weapon 6 | . . . . 1 2 . . . 2 1 Special Melee Weapon 3 | . . . . . 1 . . . 1 1 Unidentified Prototypes 28 | . 1 3 1 1 4 1 . 4 10 3 Corrupted Parts 1 | . . . . . . . . 1 . . System Corruption 2 | . . . . . . . . 2 . . Parts Lost 68 | . . 5 1 1 . 1 . 6 37 17 Power 10 | . . 2 . . . . . 2 4 2 Propulsion 25 | . . . . . . . . 1 16 8 Utility 23 | . . 1 1 1 . 1 . 2 11 6 Weapon 10 | . . 2 . . . . . 1 6 1 Highest Loss Streak 14 | . . 3 1 1 . 1 . 5 14 14 To Critical Strikes . | . . . . . . . . . . . Average Backups 13 | 3 7 14 23 24 7 8 6 10 7 7 Power . | . . . 1 2 1 . . . . . Propulsion 3 | 1 2 4 7 7 1 . 2 1 . 1 Utility 5 | . 2 6 9 9 2 4 2 5 4 3 Weapon 3 | . 2 3 4 4 1 2 1 2 1 1 Tool/Special . | . . . . . . . . . . . Unused Backups 39 | . 2 1 10 1 6 6 2 4 6 1 Power 2 | . . . . 1 . . 1 . . . Propulsion 9 | . 1 . 3 . 2 . . 3 . . Utility 15 | . . . 4 . 3 3 . . 4 1 Weapon 13 | . 1 1 3 . 1 3 1 1 2 . Tool/Special . | . . . . . . . . . . . Average Slot Usage (%) 86 | . 100 93 87 82 96 93 94 86 66 75 Engine 6 | . 14 9 8 7 . . . . . . Reactor 1 | . . . . . . . 4 3 3 4 Treads 20 | . 28 31 32 28 . . . . 7 . Flight 5 | . . . . . 29 26 24 24 5 16 Device 12 | . 14 17 15 14 9 2 4 7 6 10 Storage 7 | . 14 10 8 7 2 5 4 3 2 3 Processor 8 | . . . . 11 25 24 19 20 16 18 Hackware 2 | . . . . . 5 6 14 10 8 3 Protection 3 | . . 4 8 7 4 2 4 . 1 2 Ballistic Gun 4 | . 17 2 8 . . . . . . . Ballistic Cannon 5 | . 10 14 3 6 . . . . . . Slashing Weapon 1 | . . . . . . . . 3 4 4 Peak Build Rating 184 | 7 20 35 49 56 75 97 110 141 184 172 Average Rating 63 | 5 9 26 44 54 64 80 106 128 132 137 On Entrance 58 | . 7 20 35 49 55 66 97 106 137 71 Avg Prop Armor Cover (%) 11 | . . . . . . . . 6 17 3 Naked Turns 13 | . . . . . . . . . . 13 Heaviest Build 120 | 12 17 110 117 120 22 36 37 47 102 57 Greatest Support 215 | 40 40 60 84 84 30 51 39 54 215 67 Greatest Overweight (x) 6 | . . 1 1 1 . . . 1 6 2 Average Overweight (x) . | . . . 1 1 . . . . . . Largest Inventory Capacity 25 | 8 8 25 25 25 25 10 10 15 15 15 Average Capacity 16 | 7 8 21 25 25 7 10 10 13 8 10 Most Carried 25 | 5 8 25 25 25 25 10 10 15 15 15 Average Carried 15 | 3 7 17 24 24 6 9 9 12 8 8 Final Capacity 25 | 8 8 25 25 25 10 10 10 15 5 5 Final Carried 25 | 5 8 25 25 25 9 10 10 13 5 3 Class Distribution -------------------- 49% | Mutant 18% | Scavenger-Mutant 6% | Hacker-Mutant 4% | Gladiator 4% | Hacker-Sprinter 4% | Sprinter 3% | Hacker-Gladiator 3% | Hacker-Scout 3% | Scout Dominant Class ---------------- Mutant | -10/Materials Mutant | -9/Materials Scavenger-Mutant | -8/Materials Mutant | -7/Factory Scout | -6/Factory Hacker-Sprinter | -5/Factory Hacker-Sprinter | -4/Factory Hacker-Scout | -3/Research Hacker-Mutant | -2/Research Mutant | -1/Access Resources | -11 -10 -9 -8 -7 -6 -5 -4 -3 -2 -1 ----------- Run | Yrd Mat Mat Mat Fac Fac Fac Fac Res Res Acc Matter Collected 4649 | 262 359 662 938 237 367 540 40 450 324 470 Remotely . | . . . . . . . . . . . Salvage Created 7476 | 169 514 1027 721 224 296 307 90 1136 1549 1443 Parts 344 | 12 30 58 37 14 8 9 2 59 60 55 Haulers Intercepted 16 | . 2 4 . . . 1 1 4 . 4 Recyclers Shooed 8 | 1 2 1 . 1 . 1 . 1 1 . Parts Field Recycled . | . . . . . . . . . . . Retrieved Matter . | . . . . . . . . . . . Parts Self-Destructed . | . . . . . . . . . . . Prevented . | . . . . . . . . . . . Parts Restored . | . . . . . . . . . . . Kills | -11 -10 -9 -8 -7 -6 -5 -4 -3 -2 -1 ------- Run | Yrd Mat Mat Mat Fac Fac Fac Fac Res Res Acc Combat Hostiles Destroyed 99 | . 12 23 17 7 . 1 . 15 11 13 Melee 24 | . . . . . . 1 . 5 7 11 Guns 18 | . 9 2 7 . . . . . . . Cannons 32 | . 3 17 9 3 . . . . . . AOE 20 | . . 4 1 3 . . . 9 1 2 Classes Destroyed 19 | 2 6 5 1 . . 1 . 1 3 . Worker 6 | . . 1 . . 1 . . 3 . 1 Builder 7 | . 1 1 1 . . . . 4 . . Tunneler 4 | 3 . . . . 1 . . . . . Hauler 16 | . 2 4 . . . 1 1 4 . 4 Recycler 13 | 1 1 1 . . 2 1 . 2 4 1 Mechanic 1 | . 1 . . . . . . . . . Operator 4 | . 1 1 . 1 1 . . . . . Watcher 5 | . . 3 . . . 1 . . . 1 Swarmer 29 | . 6 4 2 3 . . . 11 . 3 Cutter 2 | . . . . . . . . . 2 . Grunt 23 | . 6 9 5 . . . . . . 3 Brawler 1 | . . 1 . . . . . . . . Duelist 2 | . . 1 1 . . . . . . . Sentry 20 | . . 8 8 2 . . . . 1 1 Specialist 1 | . . . . . . 1 . . . . Hunter 11 | . . . 1 2 . . . . 5 3 Programmer 10 | . . . . . . . . 4 3 3 Heavy 1 | . . . . . . . . . 1 . Behemoth 1 | . . . . . . . . . 1 . Best Kill Streak 11 | 2 3 5 4 3 5 2 1 10 3 11 Combat Bots Only 7 | . 3 4 3 3 . 1 . 5 3 7 Max Kills in Single Turn 4 | 1 2 3 1 2 1 1 1 4 1 2 Gunslinging . | . . . . . . . . . . . Exploded 3 | . . 3 1 2 . . . 3 1 2 Melee 2 | . . . . . . 1 . 1 1 2 Uniques/NPCs Destroyed . | . . . . . . . . . . . Combat | -11 -10 -9 -8 -7 -6 -5 -4 -3 -2 -1 -------- Run | Yrd Mat Mat Mat Fac Fac Fac Fac Res Res Acc Hostile Shots Fired 1482 | . 63 95 99 93 . 18 26 82 725 281 Missed 562 | . 17 25 31 38 . 8 17 46 292 88 Hits 920 | . 46 70 68 55 . 10 9 36 433 193 Melee 11 | . . 1 1 . . . . . 6 3 Projectile 909 | . 46 69 67 55 . 10 9 36 427 190 AOE 5 | . . . . . . 1 . . 4 . Critical Strikes 42 | . . 2 3 . . . . 1 25 11 Actively Blocked 19 | . . . . . . . . 1 10 8 Part Disruptions 2 | . . . . . . . . . 1 1 Damage Taken 19299 | . 456 992 1022 666 . 355 171 783 10026 4828 Core 4130 | . 61 84 59 52 . 93 . 92 1827 1862 Absorbed by Shields 394 | . . . . . . . . . 394 . Redirected to Shielding 316 | . . . . . . . . . . 316 Ignored by Resistances 661 | . . . 112 . . 5 . . 300 244 Regen/Repaired (Parts) 131 | . . . . 73 . . 58 . . . Core Remaining (%) 84 | 100 75 79 100 94 100 92 100 94 13 . Volleys Fired 252 | 9 60 69 59 28 . . . 12 2 13 Largest 2 | 2 2 2 2 1 . . . 1 1 1 Hottest 120 | 40 60 100 50 50 . . . 90 90 120 Shots Fired 418 | 18 120 127 96 28 . . . 12 2 15 Gun 204 | 18 96 18 72 . . . . . . . Cannon 196 | . 24 104 24 25 . . . 2 2 15 Launcher 16 | . . 3 . 3 . . . 10 . . Special 2 | . . 2 . . . . . . . . Kinetic 364 | 18 120 105 96 25 . . . . . . Thermal 38 | . . 19 . . . . . 2 2 15 Explosive 16 | . . 3 . 3 . . . 10 . . Electromagnetic . | . . . . . . . . . . . Robot Hit Streak 18 | 7 16 18 11 5 . . . 8 . 3 Robot Miss Streak 4 | 1 4 3 2 1 . . . 2 . 1 Penetration Max 1 | . . . . 1 . . . . . . Secondary Targets . | . . . . . . . . . . . Shots Hit Robots 417 | 13 86 93 69 16 5 9 3 26 52 45 Core Hits 189 | 5 30 46 26 10 3 4 . 22 23 20 Critical Kills 2 | . . 1 . . 1 . . . . . Critical Parts Destroyed 11 | . . . . . 1 . 1 6 3 . Critical Strikes 32 | . . 4 2 1 3 1 1 6 9 5 Destroy 1 | . . 1 . . . . . . . . Blast 6 | . . 3 2 1 . . . . . . Smash 12 | . . . . . 2 . 1 6 3 . Sever 10 | . . . . . . . . . 5 5 Impale 3 | . . . . . 1 1 . . 1 . Melee Attacks 214 | . . . . 1 14 12 3 49 79 56 Impact 43 | . . . . . 10 1 3 26 3 . Slashing 132 | . . . . . . . . 23 54 55 Piercing 38 | . . . . 1 4 10 . . 22 1 Sneak Attacks 42 | . . . . 1 4 4 1 7 18 7 Combat Hostiles 2 | . . . . . . 1 . . . 1 Follow-up Attacks 10 | . . . . . . 1 . . 1 8 Damage Inflicted 17704 | 138 1034 2240 1790 1165 526 381 285 3700 2907 3538 Guns 1853 | 138 678 223 814 . . . . . . . Cannons 3586 | . 349 1515 926 702 . . . . . 94 Explosions 2894 | . . 501 50 349 . . . 1994 . . Melee 9234 | . . . . 70 526 381 285 1706 2901 3365 Ramming 137 | . 7 1 . 44 . . . . 6 79 Kinetic 5087 | 138 1027 1480 1740 702 . . . . . . Thermal 352 | . . 258 . . . . . . . 94 Explosive 2894 | . . 501 50 349 . . . 1994 . . Electromagnetic . | . . . . . . . . . . . Impact 1923 | . . . . . 468 . 285 942 228 . Slashing 6323 | . . . . . . . . 764 2356 3203 Piercing 988 | . . . . 70 58 381 . . 317 162 Highest Corruption 37 | . . . . . . 10 . 4 26 37 Average Corruption 10 | . . . . . . 2 . 2 10 15 Corruption Purged . | . . . . . . . . . . . Corruption Blocked . | . . . . . . . . . . . Effects 57 | . . . . . . 2 . 1 39 15 Message Errors 12 | . . . . . . . . . 8 4 Matter Fused 14 | . . . . . . . . . 10 4 Heat Flow Errors 5 | . . . . . . . . 1 3 1 Energy Discharges 7 | . . . . . . . . . 6 1 Data Loss (minor) 7 | . . . . . . 1 . . 3 3 Data Loss (major) 2 | . . . . . . 1 . . 1 . Misfires 1 | . . . . . . . . . . 1 Alerts 1 | . . . . . . . . . 1 . Misdirections 8 | . . . . . . . . . 7 1 Overload Shots . | . . . . . . . . . . . Overflow Damage 2087 | . 3 16 75 69 211 43 206 741 340 383 Projectiles 140 | . 3 16 67 51 . . . . . 3 Explosions 92 | . . . 8 13 . . . 71 . . Melee 1855 | . . . . 5 211 43 206 670 340 380 Knockbacks 25 | . 7 5 2 6 . . 1 3 1 . Impact 6 | . . . . 1 . . 1 3 1 . Kinetic 17 | . 5 5 2 5 . . . . . . Secondary 2 | . 2 . . . . . . . . . Self-Inflicted Damage 120 | . . . 82 . . . . . . 38 Shots 1 | . . . 1 . . . . . . . Rammed 21 | . 4 1 . 2 . . . . . 14 Targets Rammed 23 | . 5 1 . 2 . . . . 1 14 Kicked 1 | . . . . . . . . . 1 . Crushed 1 | . 1 . . . . . . . . . Highest Temperature 447 | . 12 265 304 . 447 20 . 175 225 193 Average Temperature 68 | . 7 56 96 . 252 20 . 88 54 31 Received Heat Transfer 1662 | . 159 354 396 84 . 75 63 . 432 99 Siege Activations . | . . . . . . . . . . . Martial Activations . | . . . . . . . . . . . Shielding Activations . | . . . . . . . . . . . Robots Disrupted . | . . . . . . . . . . . Combat Hostiles . | . . . . . . . . . . . Robots Corrupted 7 | . . . . . . . . 4 3 . Combat Hostiles 3 | . . . . . . . . 1 2 . Parts Fried 10 | . . . . . 5 . . 2 3 . Impact Corruptions 28 | . . . . 1 7 . 3 11 5 1 Robots Melted . | . . . . . . . . . . . Combat Hostiles . | . . . . . . . . . . . Parts Melted 3 | . . . 3 . . . . . . . Heat Transferred 592 | . . 518 . . . . . . . 74 Parts Sabotaged . | . . . . . . . . . . . Parts Stolen . | . . . . . . . . . . . Parts Stripped 6 | . . . . . . . . . 6 . Power Chain Reactions 1 | . . . . . . . 1 . . . Alert | -11 -10 -9 -8 -7 -6 -5 -4 -3 -2 -1 ------- Run | Yrd Mat Mat Mat Fac Fac Fac Fac Res Res Acc Maximum Alert Level 3 | . . 1 2 1 . 1 1 2 3 3 Low Security (%) 59 | 100 100 86 55 93 100 13 58 16 . . Level 1 11 | . . 13 4 6 . 86 41 51 11 5 Level 2 23 | . . . 39 . . . . 31 52 93 Level 3 5 | . . . . . . . . . 36 1 Level 4 . | . . . . . . . . . . . Level 5 . | . . . . . . . . . . . High Security . | . . . . . . . . . . . Max Security . | . . . . . . . . . . . Peak Influence 994 | 10 119 268 528 213 83 385 310 656 994 700 Initial 405 | . . 11 105 213 79 33 188 170 365 405 Average 265 | 1 41 122 256 145 62 268 211 397 653 546 Influence Increases 6291 | 20 381 777 971 364 140 502 177 766 1501 692 Destroy 0b10 Robot/C 2440 | . 240 460 520 140 . 140 . 300 380 260 Destroy 0b10 Robot/NC 295 | 20 30 55 20 5 25 15 5 65 20 35 Destroy Leader 638 | . 44 154 176 40 . 24 2 58 70 70 Allied During Kill 183 | . . . 95 . . 40 . . 48 . Successful Hack 322 | . 20 . 2 94 93 32 . 43 32 6 Select Force Hacks 50 | . . . . . . . 50 . . . Disable Machine 240 | . . 45 60 45 . 15 . 75 . . Destroy Structure 351 | . 2 48 23 25 7 12 . 120 78 36 Partial Spotted 165 | . . . . . 15 15 45 . 15 75 Lose Combat Pursuer 1125 | . 45 15 75 15 . 15 75 105 570 210 Miscellaneous 482 | . . . . . . 194 . . 288 . Influence Decreases 5624 | 20 353 553 753 671 234 186 237 441 1475 701 Entered New Map 1449 | . . 17 147 257 84 36 197 155 285 271 Time Decay 2961 | 20 353 486 522 404 140 90 40 206 470 230 Search Patrol Dispatched 300 | . . . . . . . . . 300 . Lost Part 680 | . . 50 10 10 . 10 . 60 370 170 Lost Ally 160 | . . . . . 10 50 . 20 50 30 Purge Threat 74 | . . . 74 . . . . . . . Squads Dispatched 51 | . 1 1 7 2 1 9 4 9 9 8 Investigation 13 | . . . 2 1 1 2 3 2 1 1 Extermination 12 | . . . . 1 . 2 . 2 4 3 Reinforcement 20 | . 1 1 2 . . 5 1 2 4 4 Assault . | . . . . . . . . . . . Garrison 6 | . . . 3 . . . . 3 . . Intercept . | . . . . . . . . . . . Searches Triggered 3 | . . . . . . . . . 3 . Construction Impeded 3 | . . . 1 . . . . 1 . 1 Haulers Reinforced 3 | . . . . . . 1 . 1 1 . Active Scanning Responses . | . . . . . . . . . . . Cargo Convoy Interrupts . | . . . . . . . . . . . Stealth | -11 -10 -9 -8 -7 -6 -5 -4 -3 -2 -1 --------- Run | Yrd Mat Mat Mat Fac Fac Fac Fac Res Res Acc Distress Signals 22 | . 1 6 2 1 . . 1 3 5 3 Communications Jammed 35 | . . . . . . . . . 35 . Distress Signals 35 | . . . . . . . . . 35 . Times Spotted 331 | . 21 32 34 11 2 19 21 31 111 49 Peak Tracking Total 27 | . 3 5 6 5 1 4 11 7 27 12 Tactical Retreats 32 | . 2 1 4 1 . 1 2 4 9 8 Traps | -11 -10 -9 -8 -7 -6 -5 -4 -3 -2 -1 ------- Run | Yrd Mat Mat Mat Fac Fac Fac Fac Res Res Acc Traps Triggered 12 | . . . . 1 2 1 . 2 2 4 Indirectly . | . . . . . . . . . . . Trap Hack Attempts 8 | . . . . . 8 . . . . . Triggered . | . . . . . . . . . . . Disarmed . | . . . . . . . . . . . Reprogrammed . | . . . . . . . . . . . Reused . | . . . . . . . . . . . Traps Extracted . | . . . . . . . . . . . Installed . | . . . . . . . . . . . Triggered . | . . . . . . . . . . . Machines | -11 -10 -9 -8 -7 -6 -5 -4 -3 -2 -1 ---------- Run | Yrd Mat Mat Mat Fac Fac Fac Fac Res Res Acc Machines Disabled 16 | . . 3 4 3 . 1 . 5 . . Max in Single Turn 2 | . . 2 2 1 . 1 . 1 . . Garrison Access 4 | . . . . . . . 2 1 1 . Machines Repaired . | . . . . . . . . . . . Machines Dismantled . | . . . . . . . . . . . Machines Sabotaged . | . . . . . . . . . . . Overloaded Fab Kills 3 | . . . . . . . 3 . . . Hacking | -11 -10 -9 -8 -7 -6 -5 -4 -3 -2 -1 --------- Run | Yrd Mat Mat Mat Fac Fac Fac Fac Res Res Acc Machines Accessed 60 | . 3 2 5 8 9 3 7 9 8 6 Terminals 33 | . 3 1 3 3 5 2 2 6 5 3 Fabricators 7 | . . . . 4 2 . 1 . . . Repair Stations 4 | . . . . 1 1 . 1 1 . . Recycling Units 1 | . . . . . . . 1 . . . Scanalyzers 9 | . . 1 1 . 1 1 . 1 2 2 Garrison Access 6 | . . . 1 . . . 2 1 1 1 Total Hacks 137 | . 6 4 15 16 16 7 16 25 18 14 Successful 50 | . 3 3 7 7 6 3 7 7 6 1 Failed 83 | . 3 1 7 9 9 3 9 18 11 13 Catastrophic 19 | . 1 . 2 1 4 1 1 5 3 1 Database Lockouts 4 | . . . 1 . 1 1 . . 1 . Manual 42 | . 6 1 . 7 5 1 6 7 9 . Terminals 76 | . 6 1 7 4 9 5 7 16 13 8 Fabricators 12 | . . . . 7 4 . 1 . . . Repair Stations 12 | . . . . 5 1 . 2 4 . . Recycling Units 1 | . . . . . . . 1 . . . Scanalyzers 20 | . . 3 4 . 2 2 . 2 3 4 Garrison Access 16 | . . . 4 . . . 5 3 2 2 Terminal Hacks 17 | . 3 1 4 2 2 1 2 1 . 1 Robot Analysis 3 | . 2 1 . . . . . . . . Open Door 1 | . . . . . . . . . . 1 Level Access Points 2 | . . . . . . . 1 1 . . Branch Access Points 3 | . . . . 1 1 1 . . . . Unreport Threat 1 | . . . 1 . . . . . . . Locate Traps 4 | . 1 . 2 1 . . . . . . Hauler Manifests 1 | . . . 1 . . . . . . . Registered Components 1 | . . . . . 1 . . . . . Zone Layout 1 | . . . . . . . 1 . . . Fabricator Hacks 2 | . . . . 1 1 . . . . . Network Status 1 | . . . . 1 . . . . . . Build 1 | . . . . . 1 . . . . . Repair Station Hacks 4 | . . . . 2 1 . . 1 . . Scan Component 2 | . . . . 1 . . . 1 . . Repair 1 | . . . . 1 . . . . . . Refit 1 | . . . . . 1 . . . . . Recycling Unit Hacks 1 | . . . . . . . 1 . . . Retrieve Components 1 | . . . . . . . 1 . . . Scanalyzer 10 | . . 2 3 . 1 1 . 1 2 . Insert Component 2 | . . . 1 . . . . . 1 . Analyze 1 | . . . 1 . . . . . . . Retrieve Study 7 | . . 2 1 . 1 1 . 1 1 . Garrison Access Hacks 4 | . . . . . . . 2 1 1 . Seal Access 4 | . . . . . . . 2 1 1 . Unauthorized Hacks 12 | . . . . 2 1 1 2 3 3 . Terminals 7 | . . . . . . 1 . 3 3 . Track 1 | . . . . . . . . . 1 . Assimilate 4 | . . . . . . 1 . 2 1 . Botnet 2 | . . . . . . . . 1 1 . Fabricators 4 | . . . . 2 1 . 1 . . . Fabnet 3 | . . . . 2 1 . . . . . Overload 1 | . . . . . . . 1 . . . Repair Stations 1 | . . . . . . . 1 . . . Patch 1 | . . . . . . . 1 . . . Recycling Units . | . . . . . . . . . . . Scanalyzers . | . . . . . . . . . . . Garrison Access . | . . . . . . . . . . . Data Cores Recovered 1 | . . . . . 1 . . . . . Used 1 | . . . . . 1 . . . . . Hacking Detections 49 | . 2 1 4 7 8 3 3 7 8 6 Full Trace Events 7 | . . . 1 1 1 . . 2 1 1 Feedback Events . | . . . . . . . . . . . Feedback Blocked 2 | . . . . . . . . 2 . . Robot Schematics Acquired . | . . . . . . . . . . . Robots Built 1 | . . . . . 1 . . . . . Authchips . | . . . . . . . . . . . Time 38 | . . . . . 38 . . . . . Total Robot Build Rating 3 | . . . . . 3 . . . . . Part Schematics Acquired 1 | . . . 1 . . . . . . . Parts Built . | . . . . . . . . . . . Authchips . | . . . . . . . . . . . Time . | . . . . . . . . . . . Total Part Build Rating . | . . . . . . . . . . . Part Studies Acquired 7 | . . 2 1 . 1 1 . 1 1 . Parts Repaired 1 | . . . . 1 . . . . . . Time 23 | . . . . 23 . . . . . . Parts Recycled . | . . . . . . . . . . . Recycled Matter . | . . . . . . . . . . . Retrieved Matter . | . . . . . . . . . . . Retrieved Components 3 | . . . . . . . 3 . . . Parts Scanalyzed 1 | . . . 1 . . . . . . . Part Schematics Acquired 1 | . . . 1 . . . . . . . Parts Damaged . | . . . . . . . . . . . Bothacking | -11 -10 -9 -8 -7 -6 -5 -4 -3 -2 -1 ------------ Run | Yrd Mat Mat Mat Fac Fac Fac Fac Res Res Acc Used RIF Installer . | . . . . . . . . . . . Robots Hacked 1 | . . . . . . 1 . . . . Non-combat . | . . . . . . . . . . . Combat 1 | . . . . . . 1 . . . . Robot Hacks Applied . | . . . . . . . . . . . Relay Couplers Released 1 | . . . . . . . 1 . . . Machine Destruction 1 | . . . . . . . 1 . . . Fabnet Peak Effective % 6 | . . . . . 6 5 1 . . . Autooverrided 1 | . . . . . . 1 . . . . Robots Rewired 1 | . . . . . . 1 . . . . Allies Hacked 1 | . . . . . . . . . 1 . Hacks Repelled . | . . . . . . . . . . . Allies | -11 -10 -9 -8 -7 -6 -5 -4 -3 -2 -1 -------- Run | Yrd Mat Mat Mat Fac Fac Fac Fac Res Res Acc Total Allies 22 | . . . 4 . 1 8 . 2 7 . Largest Group 5 | . . . 4 . 1 5 . 1 2 . Highest-Rated Group 230 | . . . 84 . 26 230 . 26 183 . Highest-Rated Ally 183 | . . . 21 . 26 55 . 26 183 . Total Orders . | . . . . . . . . . . . Ally Attacks 140 | . . . 48 . . 53 . . 32 7 Total Damage 3717 | . . . 911 . . 1411 . . 1202 193 Kills 27 | . . . 12 . . 6 . . 9 . Allies Corrupted 1 | . . . . . . . . . . 1 Allies Melted . | . . . . . . . . . . . X0-1V1 Amusement Gains 211 | . 20 . 10 . . 5 5 30 94 47 Good Acts 137 | . . 3 7 5 9 48 5 20 26 14 Bad Acts 66 | . . 2 10 . 5 24 . 8 8 9 Intel | -11 -10 -9 -8 -7 -6 -5 -4 -3 -2 -1 ------- Run | Yrd Mat Mat Mat Fac Fac Fac Fac Res Res Acc Active Infowar (turns) 4465 | 63 849 877 . 926 291 194 89 432 744 . Optics 748 | . . . . 748 . . . . . . Sensors 930 | . . . . 178 284 104 . 210 154 . Seismic 1848 | 63 849 877 . . 59 . . . . . T.N.C. 386 | . . . . . 274 112 . . . . Machine Analysis 1374 | . . . . . 208 194 89 432 451 . Jamming 293 | . . . . . . . . . 293 . Robot Analysis Total 3 | . 2 1 . . . . . . . . Derelict Logs Recovered . | . . . . . . . . . . . Drone Launches 3 | . . . . . . . . . . 3 Drone Recoveries . | . . . . . . . . . . . Exploration | -11 -10 -9 -8 -7 -6 -5 -4 -3 -2 -1 ------------- Run | Yrd Mat Mat Mat Fac Fac Fac Fac Res Res Acc Turns Passed 7695 | 153 1045 1378 1459 960 291 194 89 432 1198 496 Spaces Moved 6399 | 71 479 566 569 376 632 479 298 828 1197 904 Core 100 | 3 . . . . . . . . 94 3 Treads 2359 | 68 479 566 569 376 . . . . 301 . Legs 98 | . . . . . . . . . 98 . Wheels . | . . . . . . . . . . . Hover 174 | . . . . . . . . . . 174 Flight 3668 | . . . . . 632 479 298 828 704 727 Fastest Speed 8 | 50 160 160 200 225 23 11 24 20 18 8 Average Speed 88 | 155 160 189 213 225 23 23 24 21 74 25 Slowest Speed 350 | 160 160 200 225 225 28 26 24 91 350 260 Overloaded Moves 57 | . . . . . . 4 . . 28 25 Propulsion Burnouts . | . . . . . . . . . . . Robots Hopped 43 | . . . . . . 3 5 4 20 11 Potential Cave-ins 2 | . . . . . . . . 2 . . Cave-ins Triggered . | . . . . . . . . . . . Exploration Rate (%) 29 | 3 53 57 67 11 21 15 15 27 38 20 Regions Visited 10 Branch Regions . Pre-discovered Areas . | . . . . . . . . . . . Known Exits Taken 6 | . . . . 1 1 1 1 1 1 . Unknown Exits Taken 4 | 1 1 1 1 . . . . . . . Scrap Searched . | . . . . . . . . . . . Spaces Dug 94 | . . 29 . 13 7 2 . 12 22 9 Terrain Destroyed 230 | . . 50 30 32 7 2 . 68 23 18 Melee 47 | . . . . . 7 2 . 12 21 5 Projectile 39 | . . 2 8 12 . . . 2 2 13 AOE 144 | . . 48 22 20 . . . 54 . . Terrain Rammed . | . . . . . . . . . . . Walls Destroyed . | . . . . . . . . . . . Machines Disabled . | . . . . . . . . . . . Actions | -11 -10 -9 -8 -7 -6 -5 -4 -3 -2 -1 --------- Run | Yrd Mat Mat Mat Fac Fac Fac Fac Res Res Acc Total 7697 | 94 646 738 718 448 761 541 305 981 1387 1078 Wait 321 | 3 85 46 35 12 27 26 . 26 37 24 Move 6314 | 70 478 565 568 375 631 472 290 819 1160 886 Hop 32 | . . . . . . 3 2 4 16 7 Pick Up 107 | 5 6 20 20 4 6 7 4 14 11 10 Fast Attach 136 | 7 3 6 3 8 13 4 1 25 39 27 Attach 56 | . . 6 4 4 12 4 2 4 9 11 Detach 45 | . . 3 2 4 5 2 1 5 14 9 Swap 55 | . 2 13 6 1 3 4 . 13 2 11 Drop 133 | . 7 9 21 7 30 7 2 15 20 15 Fire 252 | 9 60 69 59 28 . . . 12 2 13 Melee 190 | . . . . 1 12 11 3 44 76 43 Ram 14 | . . . . . . . . . . 14 Kick 1 | . . . . . . . . . 1 . Crush 8 | . 5 1 . 2 . . . . . . Escape Stasis 24 | . . . . 2 14 . . . . 8 Rewire 1 | . . . . . . 1 . . . . Trap 8 | . . . . . 8 . . . . . Miscellaneous . | . . . . . . . . . . . Route ------- -11/Scrapyard -10/Materials (discovered 3 exits: *Mat / [*Min] / [*Sub]) -9/Materials (discovered 3 exits: *Mat x2 / [*Min]) -8/Materials (discovered 2 exits: *Fac x2) -7/Factory (discovered 4 exits: *Fac / Sto / *Low x2) -6/Factory (discovered 5 exits: *Fac x3 / *Low x2) -5/Factory (discovered 8 exits: *Fac x4 / *Upp x2 / Ext x2) -4/Factory (discovered 4 exits: *Res x4) -3/Research (discovered 4 exits: *Res x3 / Qua) -2/Research (discovered 3 exits: *Acc / *Tes x2) -1/Access (discovered 2 exits: Sur / Com) History --------- Turn | Location | Event 11 | -11/Scrapyard | Discovered new exit (range 15) 154 | -11/Scrapyard | Entered Materials 307 | -10/Materials | Build established: Mutant 612 | -10/Materials | Discovered new exit (range 9) 995 | -10/Materials | Discovered new exit (range 6) 1001 | -10/Materials | Prayed at D.C.S.S. Altar Unit 1126 | -10/Materials | Discovered new exit (range 13) 1199 | -10/Materials | Entered another Materials area 1199 | -9/Materials | Evolved 2 slots: Propulsion x1, Utility x1 1682 | -9/Materials | Utility slot count permanently improved by X0-1V1 (+1) 1798 | -9/Materials | Discovered new exit (range 16) 2127 | -9/Materials | Discovered new exit (range 10) 2224 | -9/Materials | Lost 3 parts (1p2w) 2535 | -9/Materials | Discovered new exit (range 15) 2577 | -9/Materials | Entered another Materials area 2577 | -8/Materials | Evolved 2 slots: Propulsion x1, Utility x1 2713 | -8/Materials | X0-1V1 redirected Transport squads to designated parking area 2859 | -8/Materials | X0-1V1 sent you into danger 2883 | -8/Materials | Build established: Scavenger-Mutant 2939 | -8/Materials | Discovered new exit (range 9) 2957 | -8/Materials | X0-1V1 foreshadows a heat wave 3176 | -8/Materials | Ambient heat levels rising (+10) 3190 | -8/Materials | X0-1V1 sent you to a vault 3262 | -8/Materials | Central database locked down 3418 | -8/Materials | Ambient heat levels rising (+10) 3461 | -8/Materials | Garrison activated, responded to threat 3513 | -8/Materials | Lost 3 allies 3728 | -8/Materials | Ambient heat levels falling (-10) 3853 | -8/Materials | Build established: Mutant 3985 | -8/Materials | Heat dissipation permanently improved by X0-1V1 (+20; -100 max core) 4005 | -8/Materials | Discovered new exit (range 11) 4019 | -8/Materials | X0-1V1 activates XOMVISION 4036 | -8/Materials | Entered Factory 4036 | -7/Factory | Evolved 2 slots: Utility x2 4420 | -7/Factory | Identified exit to Storage 4420 | -7/Factory | Identified exit to Lower Caves 4438 | -7/Factory | Core integrity permanently improved by X0-1V1 (+350) 4470 | -7/Factory | Discovered new exit (range 9) 4931 | -7/Factory | Repaired Prc. Grenade Launcher? 4994 | -7/Factory | Identified exit to Factory 4996 | -7/Factory | Entered another Factory area 4996 | -6/Factory | Evolved 2 slots: Propulsion x1, Utility x1 5021 | -6/Factory | X0-1V1 vaporized surrounding terrain (radius 21) 5024 | -6/Factory | Sensors blinded by X0-1V1 5031 | -6/Factory | Discovered new exit (range 15) 5031 | -6/Factory | X0-1V1 sent you to a vault 5035 | -6/Factory | Found Prototype Device 5035 | -6/Factory | Identified Skeleton Box 5049 | -6/Factory | Identified exit to Lower Caves 5049 | -6/Factory | X0-1V1 revealed exit location to -6/Lower Caves 5155 | -6/Factory | Fabricated O-24 Administrator? 5180 | -6/Factory | X0-1V1 activates XOMVISION 5208 | -6/Factory | Identified exit to Factory 5208 | -6/Factory | X0-1V1 revealed exit location to -5/Factory 5226 | -6/Factory | Central database locked down 5271 | -6/Factory | Discovered exit to Factory (range 14) 5279 | -6/Factory | X0-1V1 revealed exit location to -5/Factory 5281 | -6/Factory | X0-1V1 enhanced Transport squad support 5281 | -6/Factory | X0-1V1 activates XOMVISION 5287 | -6/Factory | Entered another Factory area 5287 | -5/Factory | Evolved 2 slots: Power x1, Propulsion x1 5290 | -5/Factory | X0-1V1 sent you to a vault 5292 | -5/Factory | X0-1V1 released a cloud of subatomizers 5297 | -5/Factory | Identified exit to Upper Caves 5297 | -5/Factory | Identified exit to Extension 5297 | -5/Factory | Identified exit to Factory 5297 | -5/Factory | X0-1V1 revealed exit location to -4/Factory 5300 | -5/Factory | Cld. Cesium-ion Thruster reconfigured into Item Mimic 5313 | -5/Factory | X0-1V1 added 0b10 threat records associated with you (considerable) 5317 | -5/Factory | System corruption reached 10% 5317 | -5/Factory | X0-1V1 revealed exit location to -4/Factory 5326 | -5/Factory | X0-1V1 announced a LAN party 5326 | -5/Factory | X0-1V1 redirected Transport squads to designated parking area 5336 | -5/Factory | X0-1V1 rewrote Disruptor 6a IFF filter 5338 | -5/Factory | X0-1V1 revealed exit location to -4/Factory 5360 | -5/Factory | X0-1V1 activates XOMVISION 5369 | -5/Factory | X0-1V1 revealed exit location to -4/Factory 5387 | -5/Factory | Weapon slot count temporarily expanded by X0-1V1 (+1) 5392 | -5/Factory | X0-1V1 upgraded hostiles (x1) 5402 | -5/Factory | X0-1V1 whisked you away to safety 5405 | -5/Factory | Spotted B-75 Beast 5405 | -5/Factory | X0-1V1 sent you into danger 5416 | -5/Factory | Central database locked down 5469 | -5/Factory | X0-1V1 activates XOMVISION 5481 | -5/Factory | Entered another Factory area 5481 | -4/Factory | Evolved 2 slots: Utility x2 5483 | -4/Factory | Identified exit to Research 5483 | -4/Factory | X0-1V1 revealed exit location to -3/Research 5570 | -4/Factory | Entered Research 5570 | -3/Research | Evolved 2 slots: Propulsion x1, Utility x1 5643 | -3/Research | Weapon slot count temporarily expanded by X0-1V1 (+4) 5763 | -3/Research | X0-1V1 whisked you away to safety 5778 | -3/Research | Identified exit to Quarantine 5778 | -3/Research | X0-1V1 revealed exit location to -3/Quarantine 5793 | -3/Research | X0-1V1 activates XOMVISION 5879 | -3/Research | X0-1V1 sent you into danger 5918 | -3/Research | X0-1V1 announced a LAN party 5967 | -3/Research | Spotted B-86 Titan 5970 | -3/Research | Lost 5 parts (2p1n1u1w) 5973 | -3/Research | Identified exit to Research 6002 | -3/Research | Entered another Research area 6002 | -2/Research | Evolved 2 slots: Utility x1, Weapon x1 6010 | -2/Research | Found Prototype Device 6013 | -2/Research | Identified Exp. Thermal Shield 6014 | -2/Research | X0-1V1 mutated your Utility slot to Power slot 6074 | -2/Research | Found Prototype Launcher 6082 | -2/Research | X0-1V1 sent hostile H-77 Assassin (x3) 6097 | -2/Research | X0-1V1 enhanced Transport squad support 6137 | -2/Research | X0-1V1 added 0b10 threat records associated with you (major) 6138 | -2/Research | Discovered new exit (range 13) 6143 | -2/Research | Identified exit to Testing 6156 | -2/Research | X0-1V1 activates XOMVISION 6167 | -2/Research | X0-1V1 revealed exit location to -2/Testing 6192 | -2/Research | X0-1V1 sent you to a vault 6210 | -2/Research | Lost 7 parts (1p5n1w) 6239 | -2/Research | Found Fusion Bomb Launcher 6252 | -2/Research | Search patrols dispatched 6268 | -2/Research | Found Prototype Reactor 6268 | -2/Research | Identified Singularity Reactor 6278 | -2/Research | Found Prototype Processor 6278 | -2/Research | Identified Exp. Armor Integrity Analyzer 6287 | -2/Research | Found Adv. Powered Armor 6290 | -2/Research | Found Prototype Reactor 6296 | -2/Research | Found Chaos Jack 6306 | -2/Research | Found Prototype Device 6306 | -2/Research | Identified Exp. Shield Generator 6392 | -2/Research | Build established: Hacker-Mutant 6454 | -2/Research | Found Prototype Protection 6454 | -2/Research | Identified Centrium Heavy Armor Plating 6502 | -2/Research | Search patrols dispatched 6566 | -2/Research | Identified Vortex Chain Reactor 6624 | -2/Research | Found Vortex Chain Reactor 6649 | -2/Research | Lost 3 parts (1p2u) 6752 | -2/Research | Search patrols dispatched 6765 | -2/Research | System corruption reached 10% 6768 | -2/Research | Spotted B-90 Cyclops 6795 | -2/Research | Identified exit to Access 6795 | -2/Research | X0-1V1 revealed exit location to -1/Access 6802 | -2/Research | Destroyed B-90 Cyclops 6841 | -2/Research | Lost 9 parts (3n4u2w) 6858 | -2/Research | X0-1V1 sent allied Guerrilla (x2) 6864 | -2/Research | Core integrity fell below 50% 6938 | -2/Research | X0-1V1 sent allied Lightning (x1) 6953 | -2/Research | Core integrity restored by X0-1V1 (+357) 6969 | -2/Research | X0-1V1 activates XOMVISION 7072 | -2/Research | Central database locked down 7163 | -2/Research | X0-1V1 whisked you away to safety 7166 | -2/Research | Weapon slot count temporarily expanded by X0-1V1 (+2) 7190 | -2/Research | Core integrity fell below 20% 7200 | -2/Research | Entered Access 7217 | -1/Access | Lost 14 parts (2p7n3u2w) 7242 | -1/Access | X0-1V1 redirected Transport squads to designated parking area 7251 | -1/Access | Identified exit to Command 7251 | -1/Access | X0-1V1 revealed exit location to -1/Command 7263 | -1/Access | X0-1V1 sent hostile Savage (x1) 7304 | -1/Access | Identified exit to Surface 7304 | -1/Access | X0-1V1 revealed exit location to -0/Surface 7306 | -1/Access | Spotted B-99 Colossus 7386 | -1/Access | Weapon slot count temporarily expanded by X0-1V1 (+1) 7389 | -1/Access | Destroyed 7 combat bots 7397 | -1/Access | Build established: Sprinter 7429 | -1/Access | X0-1V1 sent you to a vault 7435 | -1/Access | Found Prototype Reactor 7435 | -1/Access | Identified Zero-point Reactor 7444 | -1/Access | Found Chaos Jack 7468 | -1/Access | X0-1V1 enhanced Transport squad support 7496 | -1/Access | System corruption reached 10% 7636 | -1/Access | System corruption reached 30% 7652 | -1/Access | Core integrity fell below 50% 7683 | -1/Access | Released all parts (11) 7690 | -1/Access | Core integrity fell below 20% 7696 | -1/Access | Destroyed by H-88 Terminator with KE Penetrator Last Messages --------------- 07690_ Slug penetrates Reinforced Barrier. 07690_ Penetrated by Slug. 07690_ Assault Drone destroyed. 07690_ Slammed into H-88 Terminator. 07691_ Penetrated by Slug. 07692_ Slug penetrates Wall. 07692_ Slammed into H-88 Terminator. 07693_ Penetrated by Slug. 07693_ Slammed into H-88 Terminator. 07693_ P-80 Master resets H-88 Terminator, system corruption cleaned. 07694_ Slammed into H-88 Terminator. 07694_ Destabilizing: Core damaged (-37). 07694_ Slug penetrates H-88 Terminator. 07694_ H-88 Terminator suffers critical hit (Destroy). 07694_ H-88 Terminator destroyed. 07695_ Slammed into H-88 Terminator. 07696_ Slammed into P-80 Master. 07696_ Penetrated by Slug. 07696_ X0-1V1 laughs nastily! Map ----- +----------------------------------------------------+ | ?????????????????????????????????????????????????? | | ?????????????????????????????????????????????????? | | ?????????????????????????????????????????????????? | | ?????????????????????????????????????????????????? | | ?????????????????????????????????????????????????? | | ?????????????????????????????????????????????????? | | ?????????????????????????????????????????????????? | | ?????????????????????????????????????????????????? | | ?????????????????????????????????????????????????? | | ?????????????????????????????????????????????????? | | ?????????????????????????????????????????????????? | | ?????????????????????????????????????????????????? | | ?????????????????????????????????????????????????? | | ?????????????????????????????????????????????????? | | ?????????????????????????????????????????????????? | | ???????###########???????????????????????????????? | | ???????#* #???????????????????????????????? | | ???????# #???????????????????????????????? | | ???????# ][ #???????????????????????????????? | | ???????# ]] #???????????????????????????????? | | ???????# ]] #???????????????????????????????? | | #??????# ????????????????????????????????? | | #??????# ???????#??????????????????????????? | | #??????? % ????????## #######??????????????????? | | #???????##+#+#############!%%*#??>???????????????? | | #???????# *%h*@%[!##??????????????????? | | #???????# =!h/*p[=/%#??????????????????? | | #???????# ########+###%#=[%!!#??????????????????? | | #???????# #????? #%#=n!|#####"??????????????? | | #???????# #??? #%##[=!%! "?????????###??? | | #???????# #?# ####==*== "?????????###### | | #???????# #?# #?## ! "?????????## | | #???????# #?# ] #?#########T"??????????# | | ##?????## ### *** #?????????###??????????# | | ####### ! ## ** #?????????# #??????????# " | | ## ** #?????????# #??????????# "" | | % H ## #?????????# #??????????# " | | ####""# ###########?????????# #??????????# | | ##??#########???????????????????# #??????????# | | #??????????????????##??????##########????????# | | #??????????????????######### #????????# | | #???????????????????# # #????????# | | ##################### ! # #????????#![ | | # !#????????#! | | " + #????????# | | ##### ############## # #????????# | | #???# #????????????# # #????????# | | #???# #????????????### #### ! #????????# | | #???# #??????????????# #??# #????????# | | #???# #??????????????# #??########"##???????#+### | +----------------------------------------------------+ Best States ------------- Heat Dissipation 189 Energy Generation 96 Energy Capacity 2350 Matter Stores 800 Matter Capacity 800 Sight Range 21 Robot Scan Range 16 Terrain Scan Density 210 Jamming Range 16 Power Amplification 30 Armor Coverage 600 Resistance: KI 45 Resistance: TH 48 Utility Shielding 66 Melee Speed Boost 30 Phase Shifting 15 Evasion (%) 76 Targeting Accuracy 8 Melee Accuracy 32 Core Analysis 6 Armor Integrity Analysis 50 Recoil Reduction 6 Matter Filtering 30 Offensive Hacking 22 Defensive Hacking 14 Item Schematics ----------------- Imp. Light Armor Plating | -8/Materials | Scanalyzed Robot Schematics ------------------ None Fabricated ------------ O-24 Administrator | x1 | -6/Factory | Preloaded Repaired ---------- Prc. Grenade Launcher | 33% | -7/Factory Studied --------- Lgt. Treads | -9/Materials | Hacked Lgt. Cannon | -9/Materials | Hacked VTOL Module | -8/Materials | Hacked Lrn. Missile Launcher | -6/Factory | Hacked Nuclear Pulse Array | -5/Factory | Hacked Impulse Thruster Array | -3/Research | Hacked Fusion Bomb Launcher | -2/Research | Hacked Alien Tech Used ----------------- None Achievements -------------- None Challenges ------------ None Game ------ Seed ShadeRiotBoomstick Manual? 0 Play Time 01:32:43 Cumulative 2264.4 hours Start 2026.07.06 @ 01:03:31 End 2026.07.06 @ 02:37:58 Sessions 1 Manual Loads 0 Difficulty Rogue Special Mode None Game No. 1417 Rogue 1413 Adventurer 4 Explorer 0 Win Type - Total 326 Types 244/14/27/11/4/1/6/10/5/4 Lore% 98 Gallery% 96 Achievement% 94 Wizard Run 0 Options --------- Layout 2 ASCII 0 Keyboard 1 Movement Vi Keybinds 0 Fullscreen 0 Font 24/Terminus Map View 59x48 Zoom Use 0% Tactical HUD 1 Map Filters NONE Filters NONE Steam 1 RUN: 0bdac71e-debf-4dfb-a76c-11c27978dc1a